﻿Department family,Entity,Date,Expense type,Expense area,Supplier,Transaction number,Amount,Description,Supplier Postcode
Families & Specialist Services,Radiology,30/12/2022,Contractual Clinical Services,Rad General,4 Ways Healthcare Ltd,4WHC/08230008,"60,742.14 ",Outsourcied teleradiology reporting ,HP2 7BF
Balance Sheet,L2 Current Assets,09/12/2022,Finished Processed Goods,Stock & Work In Progress,Aah Pharmaceuticals Ltd,70198536B,"31,168.80 ",Pharmaceutical purchase,CV2 2ZG
Balance Sheet,L2 Current Assets,30/12/2022,Finished Processed Goods,Stock & Work In Progress,Aah Pharmaceuticals Ltd,70951047R,"31,428.00 ",Pharmaceutical purchase,CV2 2ZG
CHS Estates,L2 Estates,01/12/2022,Other Clinical Costs,Management Estates,Agfa Finance,DEIN/22110003,"144,073.80 ",Year 4 of 10 (28 April 2022 - 27 April 2023) PACS system. Managed Service Contract. Yorkshire Imaging Collaborative.,TW8 9TH
Pmu,Pmu,09/12/2022,Drugs,Pmu,Alliance Healthcare Distribution Ltd,F29558274,"68,169.60 ",Pharmaceutical purchase,KT9 1SN
Pmu,Pmu,30/12/2022,Drugs,Pmu,Alliance Healthcare Distribution Ltd,F29754370,"91,972.22 ",Pharmaceutical purchase,KT9 1SN
Balance Sheet,L2 Current Assets,02/12/2022,Finished Processed Goods,Stock & Work In Progress,Alliance Healthcare Distribution Ltd,F2B455606,"40,659.48 ",Pharmaceutical purchase,KT9 1SN
Balance Sheet,L2 Current Assets,14/12/2022,Finished Processed Goods,Stock & Work In Progress,Alliance Healthcare Distribution Ltd,F2BD53199,"40,475.88 ",Pharmaceutical purchase,KT9 1SN
Balance Sheet,L2 Current Assets,16/12/2022,Finished Processed Goods,Stock & Work In Progress,Alliance Healthcare Distribution Ltd,F2BG54497,"41,047.38 ",Pharmaceutical purchase,KT9 1SN
Balance Sheet,L2 Current Assets,23/12/2022,Finished Processed Goods,Stock & Work In Progress,Alliance Healthcare Distribution Ltd,F2BP51591,"41,343.90 ",Pharmaceutical purchase,KT9 1SN
Balance Sheet,L2 Current Assets,30/12/2022,Finished Processed Goods,Stock & Work In Progress,Alliance Healthcare Distribution Ltd,F2BU54738,"42,529.14 ",Pharmaceutical purchase,KT9 1SN
Balance Sheet,L2 Current Assets,16/12/2022,Finished Processed Goods,Stock & Work In Progress,Alliance Healthcare Distribution Ltd,F2BW53674,"40,478.40 ",Pharmaceutical purchase,KT9 1SN
Balance Sheet,L2 Current Assets,30/12/2022,Finished Processed Goods,Stock & Work In Progress,Alloga Uk Ltd,SIN103651120,"40,500.00 ",Pharmaceutical purchase,DE55 2FH
CHS Estates,L2 Estates,30/12/2022,Contract : Other External,Medical Physics,B Braun Sterilog (Yorkshire) Ltd,328746836,"167,615.64 ",Decontamination Services for Surgical & Podiatry.,S35 2PW
Balance Sheet,L2 Current Assets,02/12/2022,Finished Processed Goods,Stock & Work In Progress,Bayer Plc,824C453294,"27,373.68 ",Pharmaceutical purchase,RG2 6AD
Balance Sheet,L2 Current Assets,09/12/2022,Finished Processed Goods,Stock & Work In Progress,Bayer Plc,824C454252,"27,373.68 ",Pharmaceutical purchase,RG2 6AD
Balance Sheet,L2 Current Assets,09/12/2022,Finished Processed Goods,Stock & Work In Progress,Bayer Plc,824C454253,"114,057.00 ",Pharmaceutical purchase,RG2 6AD
Balance Sheet,L2 Current Assets,23/12/2022,Finished Processed Goods,Stock & Work In Progress,Bayer Plc,824C457336,"27,373.68 ",Pharmaceutical purchase,RG2 6AD
Balance Sheet,L2 Current Assets,23/12/2022,Finished Processed Goods,Stock & Work In Progress,Bayer Plc,824C457777,"27,373.68 ",Pharmaceutical purchase,RG2 6AD
Balance Sheet,L2 Current Assets,23/12/2022,Finished Processed Goods,Stock & Work In Progress,Bayer Plc,824C458088,"114,057.00 ",Pharmaceutical purchase,RG2 6AD
Balance Sheet,L2 Current Assets,30/12/2022,Finished Processed Goods,Stock & Work In Progress,Bayer Plc,824C460221,"114,057.00 ",Pharmaceutical purchase,RG2 6AD
Surgery & Anaesthetics,Surgical Divisional Support,30/12/2022,Contractual Clinical Services,Independent Sector,Bmi Healthcare Ltd,S5712SEP22,"145,205.89 ",Provision of Elective Activity on behalf of CHFT,SK3 0XN
Balance Sheet,L2 Current Assets,02/12/2022,Finished Processed Goods,Stock & Work In Progress,Bristol Myers Squibb Pharmaceuticals Ltd,100695957,"34,401.84 ",Pharmaceutical purchase,CH4 9QW
Balance Sheet,L2 Current Assets,30/12/2022,Finished Processed Goods,Stock & Work In Progress,Bristol Myers Squibb Pharmaceuticals Ltd,100699198,"38,543.40 ",Pharmaceutical purchase,CH4 9QW
Surgery & Anaesthetics,Surgical Divisional Support,30/12/2022,Healthcare From Commercial Sector,Elective Recovery,Calderdale And Huddersfield Orthopaedic Partnership Llp,INV-0061,"75,000.00 ",Provision of Orthopaedic and/or Specialty Healthcare Services,LS8 2JH
Corporate Services,Service Performance,16/12/2022,Contract : Other External,Pfi,Calderdale Hospital Spc Ltd,CASI17,"3,048,766.66 ",PFI contract monthly payment,M20 2YY
Corporate Services,Service Performance,14/12/2022,External Contracts : Catering,Pfi,Calderdale Hospital Spc Ltd,CASI18,"62,380.32 ",Additional variations,M20 2YY
Corporate Services,Service Performance,14/12/2022,Minor Works,Pfi,Calderdale Hospital Spc Ltd,CASI21,"147,838.19 ",Calderdale LED Project,M20 2YY
Corporate Services,Service Performance,23/12/2022,Minor Works,Pfi,Calderdale Hospital Spc Ltd,CASI27,"538,238.45 ",New Works,M20 2YY
Corporate Services,Service Performance,30/12/2022,Rates,Properties,Calderdale Metropolitan Borough Council,25202291017616,"73,387.00 ",Business rates for Calderdale Royal Hospital,HX1 1TP
Corporate Services,Corporate Services,05/12/2022,Professional Fees,Corporate Services,Care Quality Commission,43126754,"30,805.40 ",Annual Fee in 10 installments,WF3 1WE
Health Informatics,Modernisation Programme,01/12/2022,Computer Software / License  Fees,Modernisation Programme,Cerner Ltd,102148435,"63,112.80 ",Cerner - Table 12: RHO Recurring Charges. Monthly  commencing from the Effective Date and continuing until the end of the Term £52 594 per month x 12 for 2022,W2 1AF
Health Informatics,Modernisation Programme,01/12/2022,Computer Software / License  Fees,Modernisation Programme,Cerner Ltd,102148516,"38,400.00 ",Cerner CCN053 Nuance Dragon Medical Once Speech recognition. monthly recurring charge £32 000. x 12 for 2022. to link to order rwyf400053037,W2 1AF
Health Informatics,Modernisation Programme,30/12/2022,Computer Software / License  Fees,Modernisation Programme,Cerner Ltd,102160566,"63,112.80 ",Cerner - Table 12: RHO Recurring Charges. Monthly  commencing from the Effective Date and continuing until the end of the Term £52 594 per month x 12 for 2022,W2 1AF
Health Informatics,Modernisation Programme,30/12/2022,Computer Software / License  Fees,Modernisation Programme,Cerner Ltd,102160646,"38,400.00 ",Cerner CCN053 Nuance Dragon Medical Once Speech recognition. monthly recurring charge £32 000. x 12 for 2022. to link to order rwyf400053037,W2 1AF
Balance Sheet,L2 Long Term Creditors,09/12/2022,Lease Liabilities under IFRS 16 > 1 year,Finance Leases,Chg-Meridian Uk Ltd,7092240,"51,092.27 ",Lease Philips Healthcare Ingenia 1.5T MRI Scanner,TW20 9AB
Health Informatics,Service Delivery,02/12/2022,Computer Hardware Purchases,Service Delivery,Cisilion Ltd,INVUK0016008,"8,706.66",Catalyst 9200L 48-port data  4 x 1G  Network Essentials Catalyst 9200L 48-port data  4 x 1G  Network Essentials,KT22 9UT
Health Informatics,Service Delivery,02/12/2022,Computer Hardware Purchases,Service Delivery,Cisilion Ltd,INVUK0016008,"2,169.00",PSRT-8X5XNBD Catalyst 9200L 48-port data  4 x 1G  Net - 36 Months,KT22 9UT
Health Informatics,Service Delivery,02/12/2022,Computer Hardware Purchases,Service Delivery,Cisilion Ltd,INVUK0016008,"3,598.14",Essentials  48-port  3 Year Term license C9200L Cisco DNA Essentials  48-port  3 Year Term license,KT22 9UT
Health Informatics,Service Delivery,02/12/2022,Computer Hardware Purchases,Service Delivery,Cisilion Ltd,INVUK0016008,"24,403.79",Catalyst 9200L 24-port data  4 x 1G  Network Essentials,KT22 9UT
Health Informatics,Service Delivery,02/12/2022,Computer Hardware Purchases,Service Delivery,Cisilion Ltd,INVUK0016008,"6,063.90",PSRT-8X5XNBD Catalyst 9200L 24-port data  4 x 1G  Net - 36 Months,KT22 9UT
Health Informatics,Service Delivery,02/12/2022,Computer Hardware Purchases,Service Delivery,Cisilion Ltd,INVUK0016008,"9,471.98",Essentials  24-port Term license C9200L Cisco DNA Essentials  24-port Term license 36 months,KT22 9UT
Health Informatics,Corporate And Operations,14/12/2022,Fm Computer Contracts,It Support,Cisilion Ltd,INVUK0016127,"13,593.60",Additional Cisco 9200's as per att. quote ref. OPPUK0004003 dated 11/3/22  C9200L-24P-4G-E  Catalyst 9200L 24-port PoE+  4 x 1G  Network Essentials  ,KT22 9UT
Health Informatics,Corporate And Operations,14/12/2022,Computer Network Costs,It Support,Cisilion Ltd,INVUK0016127,"4,647.30",NETWORK-PNP-LIC  C9200L Cisco DNA Essentials  24-port  3 Year Term license,KT22 9UT
Health Informatics,Corporate And Operations,14/12/2022,Computer Network Costs,It Support,Cisilion Ltd,INVUK0016127,"24,914.11",C9200L-48P-4G-E  Catalyst 9200L 48-port PoE+  4 x 1G  Network Essentials,KT22 9UT
Health Informatics,Corporate And Operations,14/12/2022,Computer Network Costs,It Support,Cisilion Ltd,INVUK0016127,"7,395.18",C9200L-DNA-E-48-3Y  C9200L Cisco DNA Essentials  48-port  3 Year Term license,KT22 9UT
Health Informatics,Corporate And Operations,14/12/2022,Computer Network Costs,It Support,Cisilion Ltd,INVUK0016146,"4,470.30",C9200L-DNA-E-24  C9200L Cisco DNA Essentials  24-port Term license,KT22 9UT
Health Informatics,Corporate And Operations,14/12/2022,Computer Network Costs,It Support,Cisilion Ltd,INVUK0016146,"8,207.70",C9200L-DNA-E-48-3Y  C9200L Cisco DNA Essentials  48-port  3 Year Term license,KT22 9UT
Health Informatics,Corporate And Operations,14/12/2022,Computer Network Costs,It Support,Cisilion Ltd,INVUK0016146,"-2,604.90",Cisco 9200 DNA 36 Month option as per att. quote OPPUK0003270 dated 17/02/22 ( all listed items required on quote)C9200L-24P-4G-E  Catalyst 9200L 24-port PoE+  4 x 1G  Network Essentials + PSRT -8X5XNBD 36 Months/ power cables & supplie,KT22 9UT
Health Informatics,Corporate And Operations,14/12/2022,Computer Network Costs,It Support,Cisilion Ltd,INVUK0016146,"15,680.55",Cisco 9200 DNA 36 Month option as per att. quote OPPUK0003270 dated 17/02/22 ( all listed items required on quote)C9200L-24P-4G-E  Catalyst 9200L 24-port PoE+  4 x 1G  Network Essentials + PSRT -8X5XNBD 36 Months/ power cables & supplie,KT22 9UT
Health Informatics,Corporate And Operations,14/12/2022,Computer Network Costs,It Support,Cisilion Ltd,INVUK0016146,"33,166.95",C9200L-48P-4G-E  Catalyst 9200L 48-port PoE+  4 x 1G  Network Essentials + PSRT-8X5XNBD 36 Months  plus ,KT22 9UT
Health Informatics,Corporate And Operations,14/12/2022,Computer Network Costs,It Support,Cisilion Ltd,INVUK0016146,"-5,515.35",C9200L-48P-4G-E  Catalyst 9200L 48-port PoE+  4 x 1G  Network Essentials + PSRT-8X5XNBD 36 Months  plus ,KT22 9UT
Health Informatics,Corporate And Operations,14/12/2022,Computer Network Costs,It Support,Cisilion Ltd,INVUK0016146,"-15,680.55",Cisco 9200 DNA 36 Month option as per att. quote OPPUK0003270 dated 17/02/22 ( all listed items required on quote)C9200L-24P-4G-E  Catalyst 9200L 24-port PoE+  4 x 1G  Network Essentials + PSRT -8X5XNBD 36 Months/ power cables & supplie,KT22 9UT
Health Informatics,Corporate And Operations,14/12/2022,Computer Network Costs,It Support,Cisilion Ltd,INVUK0016146,"2,604.90",Cisco 9200 DNA 36 Month option as per att. quote OPPUK0003270 dated 17/02/22 ( all listed items required on quote)C9200L-24P-4G-E  Catalyst 9200L 24-port PoE+  4 x 1G  Network Essentials + PSRT -8X5XNBD 36 Months/ power cables & supplie,KT22 9UT
Health Informatics,Corporate And Operations,14/12/2022,Computer Network Costs,It Support,Cisilion Ltd,INVUK0016146,"-4,470.30",C9200L-DNA-E-24  C9200L Cisco DNA Essentials  24-port Term license,KT22 9UT
Health Informatics,Corporate And Operations,14/12/2022,Computer Network Costs,It Support,Cisilion Ltd,INVUK0016146,"-33,166.95",C9200L-48P-4G-E  Catalyst 9200L 48-port PoE+  4 x 1G  Network Essentials + PSRT-8X5XNBD 36 Months  plus ,KT22 9UT
Health Informatics,Corporate And Operations,14/12/2022,Computer Network Costs,It Support,Cisilion Ltd,INVUK0016146,"5,515.35",C9200L-48P-4G-E  Catalyst 9200L 48-port PoE+  4 x 1G  Network Essentials + PSRT-8X5XNBD 36 Months  plus ,KT22 9UT
Health Informatics,Corporate And Operations,14/12/2022,Computer Network Costs,It Support,Cisilion Ltd,INVUK0016146,"-8,207.70",C9200L-DNA-E-48-3Y  C9200L Cisco DNA Essentials  48-port  3 Year Term license,KT22 9UT
Health Informatics,Corporate And Operations,14/12/2022,Computer Network Costs,It Support,Cisilion Ltd,INVUK0016146,"13,075.65",Cisco 9200 DNA 36 Month option as per att. quote OPPUK0003270 dated 17/02/22 ( all listed items required on quote)C9200L-24P-4G-E  Catalyst 9200L 24-port PoE+  4 x 1G  Network Essentials + PSRT -8X5XNBD 36 Months/ power cables & supplie,KT22 9UT
Health Informatics,Corporate And Operations,14/12/2022,Computer Network Costs,It Support,Cisilion Ltd,INVUK0016146,"4,470.30",C9200L-DNA-E-24  C9200L Cisco DNA Essentials  24-port Term license,KT22 9UT
Health Informatics,Corporate And Operations,14/12/2022,Computer Network Costs,It Support,Cisilion Ltd,INVUK0016146,"27,651.60",C9200L-48P-4G-E  Catalyst 9200L 48-port PoE+  4 x 1G  Network Essentials + PSRT-8X5XNBD 36 Months  plus ,KT22 9UT
Health Informatics,Corporate And Operations,14/12/2022,Computer Network Costs,It Support,Cisilion Ltd,INVUK0016146,"8,207.70",C9200L-DNA-E-48-3Y  C9200L Cisco DNA Essentials  48-port  3 Year Term license,KT22 9UT
Health Informatics,Corporate And Operations,16/12/2022,Computer Maintenance,It Support,Clinisys Solutions Ltd,INV34212201382,"129,279.95 ",Ice Annual Support Renewal as per quote  ASM period 01/11/2022 - 31/10/2023,KT16 9AU
Balance Sheet,L2 Current Assets,02/12/2022,Finished Processed Goods,Stock & Work In Progress,Csl Behring Uk Ltd,994051017,"26,880.00 ",Pharmaceutical purchase,RH16 1AH
CHS Estates,L2 Estates,30/12/2022,Engineering  Contracts,Estates Operations,Designa (U K) Ltd,523263,"37,720.80 ",ANNUAL MAINTENANCE FOR HUDDERSFIELD ROYAL AND ACRE MILL CAR PARK EQUIPMENT FOR PERIOD 13TH NOV 2022 TO 12TH NOV 2023 AS PER QUOTATION ,TW16 7DY
Families & Specialist Services,Pathology,21/12/2022,Computer Maintenance,Path General,DH OpCo UK Ltd,5970002165,"4,875.09",iLAB DATA EXTRACTION HARDWARE INCL 8202 MODEL E4D SERVER - MAINTENANCE,GU11 1PZ
Balance Sheet,Fixed Assets,21/12/2022,Additions - Assets Under Construction,Capital (Fss),DH OpCo UK Ltd,5970002165,"33,365.53",iLAB DATA EXTRACTION HARDWARE INCL 8202 MODEL E4D SERVER,GU11 1PZ
CHS Estates,L2 Estates,30/12/2022,Computer Software / License  Fees,Management Estates,DH OpCo UK Ltd,5970002217,"29,849.56 ",Provision & support of the i.Labs system. Year 3: 01/01/2023 – 31/12/ 2023 As per the terms and conditions of the NHS SBS Framework,GU11 1PZ
CHS Estates,L2 Estates,21/12/2022,Electricity,Estates Operations,EDF Energy Customers Ltd,000013938502,"262,251.79 ",Mains Gas CRH FY 2022/23,W1T 4EZ
Families & Specialist Services,Pharmacy,16/12/2022,Computer Software / License  Fees,Pharm Gen,Egton Medical Information Systems Ltd,SINV00002246,"54,773.23 ",Pharmacy Support Contract Valid from/to: 5/9/22 - 4/10/23.,LS19 6BA
Medical Division,Medical Divisional Management,14/12/2022,Contractual Clinical Services,Medical Divisional Management Support Services,Gutcare.Org Ltd,017,"41,500.00 ",Insourcing services to enable the recovery of Neurology  Neurophysiology  Rheumatology and Dermatology activity.,RM11 2EZ
Medical Division,Medical Divisional Management,14/12/2022,Contractual Clinical Services,Medical Divisional Management Support Services,Gutcare.Org Ltd,022,"31,581.00 ",Insourcing services to enable the recovery of Neurology  Neurophysiology  Rheumatology and Dermatology activity.,RM11 2EZ
Families & Specialist Services,Outpatients & Records Services,23/12/2022,Computer Network Costs,Outpatients Dept,Healthcare Communications Uk Ltd,INVHEA00003061,"63,360.88 ",New extension of HCC contract End of April 2023 for March usage as per contract agrement ,SK11 7AE
CHS Balance Sheet,Fixed Assets,23/12/2022,Additions - Assets Under Construction,Tangible,Inivos Ltd,I000012740,"137,664.00 ",4 x ProXcide Decontamination Systems Complete as per quote,PE30 4NG
Balance Sheet,Fixed Assets,21/12/2022,Additions - Assets Under Construction,CAPITAL (Reconfig HRI),Integrated Health Projects,22120025,"1,003,192.87 ",STAGE 3 & 4 GMP SUBMISSION FOR THE DELIVERY OF A NEW ACCIDENT AND EMERGENCY BUILD AT THE HUDDERSFIELD ROYAL INFIRMARY ,WD24 4WW
Families & Specialist Services,Radiology,16/12/2022,Contractual Clinical Services,Rad General,Integrated Radiological Services (I R S) Ltd,26059/22,"69,260.40 ",Radiation Protection Services Contract Cost Provision of Radiation Protection Services – 2022/2023 - Contract Renewal ,L3 4BJ
Balance Sheet,L2 Current Assets,23/12/2022,Finished Processed Goods,Stock & Work In Progress,Janssen-Cilag Ltd,930894192,"35,769.60 ",Pharmaceutical purchase,HP12 4EG
Balance Sheet,L2 Current Assets,23/12/2022,Finished Processed Goods,Stock & Work In Progress,Janssen-Cilag Ltd,930896150,"35,781.60 ",Pharmaceutical purchase,HP12 4EG
Estates & Facilities,Estates,02/12/2022,Rates,Estates Operations,Kirklees Council,969286425_2022,"43,093.00 ",business rates for Huddersfield Royal Infirmary,HD1 2NF
Families & Specialist Services,Pharmacy,21/12/2022,Healthcare From Commercial Sector,Pharm Gen,L Rowland & Company (Retail) Ltd,1800001590,"95,044.66",Rowlands Outpatient Pharmacy contract DISPENSING FEE,WA7 3DJ
Families & Specialist Services,Pharmacy,21/12/2022,Healthcare From Commercial Sector,Pharm Gen,L Rowland & Company (Retail) Ltd,1800001590,"795,359.43 ",Rowlands Outpatient Pharmacy Contract. medicines costs,WA7 3DJ
Balance Sheet,Fixed Assets,30/12/2022,Additions - Assets Under Construction,Capital (Estates),Lar Ltd,23906,"30,320.40 ",HRI - ESTATES -  AD HOC PIPEWORK/ASBESTOS REMOVAL SERVICES AS AND WHEN REQUIRED  INCLUDING CURRENT REPLACMENT CONDESATE PIPE SCHEME QUOTE REF Q40348-22,SK4 5BF
Balance Sheet,Fixed Assets,21/12/2022,Additions - Assets Under Construction,Capital (Estates),Lar Ltd,23942,"31,116.00 ",HRI - VARIOUS LOCATIONS WITHIN HRI - REMOVAL OF NON NOTIFIABLE ASBESTOS AS PER PHASE 1 DOCUMENT - WORKS UNDERTAKEN DURING DAYS AND NIGHTS AS PER QUOTE ,SK4 5BF
Families & Specialist Services,Radiology,16/12/2022,Med Surg Eqpt Hire,Ct,Medispace B.V.,20220461,"30,025.92 ",Rental of a CM050 CT scan box with Canon Prime 160 slice CT scanner plus 2 radiographers to run the service 8am-20.00pm 7 days per week,2712 PJ  The Netherlands
Families & Specialist Services,Radiology,16/12/2022,Med Surg Eqpt Hire,Ct,Medispace B.V.,20220525,"30,025.92 ",Rental of a CM050 CT scan box with Canon Prime 160 slice CT scanner plus 2 radiographers to run the service 8am-20.00pm 7 days per week,2712 PJ  The Netherlands
Families & Specialist Services,Radiology,16/12/2022,Med Surg Eqpt Hire,Ct,Medispace B.V.,20220545,"30,025.92 ",Rental of a CM050 CT scan box with Canon Prime 160 slice CT scanner plus 2 radiographers to run the service 8am-20.00pm 7 days per week,2712 PJ  The Netherlands
Families & Specialist Services,Radiology,12/12/2022,Med Surg Eqpt Hire,Ct,Medispace B.V.,20220566,"30,025.92 ",Rental of a CM050 CT scan box with Canon Prime 160 slice CT scanner plus 2 radiographers to run the service 8am-20.00pm 7 days per week,2712 PJ  The Netherlands
Families & Specialist Services,Radiology,12/12/2022,Med Surg Eqpt Hire,Ct,Medispace B.V.,20220597,"30,025.92 ",Rental of a CM050 CT scan box with Canon Prime 160 slice CT scanner plus 2 radiographers to run the service 8am-20.00pm 7 days per week,2712 PJ  The Netherlands
Families & Specialist Services,Radiology,14/12/2022,Imaging Equipment Purchases,Rad General,Mid Yorkshire Hospitals NHS Trust,1600021790,"29,100.00 ",regional imaging collaborative sharing solution Qtr 3,WF1 4DG
Recharges,Recharges,14/12/2022,Healthcare From NHS Trusts,Recharges,Mid Yorkshire Hospitals NHS Trust,1600021791,"52,918.00 ",Various services provided by agreement as per West Yorkshire Association of Acute Trusts agreed methodology,WF1 4DG
Families & Specialist Services,Pathology,15/12/2022,Blood Products,Blood Sciences,NHS Blood And Transplant,7009987,"85,109.73 ",MONTHLY CONTRACT CHARGE BLOOD & COMPONENTS,LS15 7TW
Families & Specialist Services,Pathology,15/12/2022,Blood Products,Blood Sciences,NHS Blood And Transplant,7009988,"32,812.05 ",MONTHLY CONTRACT CHARGE BLOOD & COMPONENTS,LS15 7TW
Corporate Services,Quality,15/12/2022,Clinical Negligence,Quality,NHS Resolution,SICX411002,"791,186.30",Clinical Negligence provision,SW1W 9SZ
Families & Specialist Services,Womens,15/12/2022,Clinical Negligence,Womens Management,NHS Resolution,SICX411002,"857,768.00",Clinical Negligence provision,SW1W 9SZ
Corporate Services,Quality,15/12/2022,Insurance Costs,Quality,NHS Resolution,SICX411002,"20,850.40 ",Clinical Negligence provision,SW1W 9SZ
CHS Balance Sheet,Current Liabilities,02/12/2022,Non- NHS  Trade Creditors < One Year,Other Creditors,NHS Supply Chain,1123171552,"150,967.63 ",Goods delivered week ending 4/11/2022,DE55 4QJ
CHS Balance Sheet,Current Liabilities,02/12/2022,Non- NHS  Trade Creditors < One Year,Other Creditors,NHS Supply Chain,1123175541,"139,485.32 ",Goods delivered week ending 4/11/2022,DE55 4QJ
CHS Balance Sheet,Current Liabilities,09/12/2022,Non- NHS  Trade Creditors < One Year,Other Creditors,NHS Supply Chain,1123179148,"141,517.30 ",Goods delivered week ending 11/11/2022,DE55 4QJ
CHS Balance Sheet,Current Liabilities,09/12/2022,Non- NHS  Trade Creditors < One Year,Other Creditors,NHS Supply Chain,1123182399,"178,669.38 ",Goods delivered week ending 11/11/2022,DE55 4QJ
CHS Balance Sheet,Current Liabilities,16/12/2022,Non- NHS  Trade Creditors < One Year,Other Creditors,NHS Supply Chain,1123186339,"149,430.18 ",Goods delivered week ending 18/11/2022,DE55 4QJ
CHS Balance Sheet,Current Liabilities,16/12/2022,Non- NHS  Trade Creditors < One Year,Other Creditors,NHS Supply Chain,1123189448,"152,801.57 ",Goods delivered week ending 18/11/2022,DE55 4QJ
CHS Balance Sheet,Current Liabilities,23/12/2022,Non- NHS  Trade Creditors < One Year,Other Creditors,NHS Supply Chain,1123192677,"132,340.23 ",Goods delivered week ending 25-Nov-2022,DE55 4QJ
CHS Balance Sheet,Current Liabilities,23/12/2022,Non- NHS  Trade Creditors < One Year,Other Creditors,NHS Supply Chain,1123196065,"174,995.71 ",Goods delivered week ending 25-Nov-2022,DE55 4QJ
CHS Balance Sheet,Current Liabilities,30/12/2022,Non- NHS  Trade Creditors < One Year,Other Creditors,NHS Supply Chain,1123198900,"142,046.06 ",Goods delivered week ending 02/12/2022,DE55 4QJ
CHS Balance Sheet,Current Liabilities,30/12/2022,Non- NHS  Trade Creditors < One Year,Other Creditors,NHS Supply Chain,1123202284,"201,043.13 ",Goods delivered week ending 02/12/2022,DE55 4QJ
Corporate Services,Finance,23/12/2022,Computer Software / License  Fees,Finance,Northumbria Healthcare NHS Foundation Trust,7550002181,"226,866.00 ",Financial Software system costs,NE27 0QJ
Balance Sheet,L2 Current Assets,14/12/2022,Finished Processed Goods,Stock & Work In Progress,Novartis Pharmaceuticals Uk Ltd,92692378,"42,201.60 ",Pharmaceutical purchase,W12 7FQ
Balance Sheet,L2 Current Assets,14/12/2022,Finished Processed Goods,Stock & Work In Progress,Novartis Pharmaceuticals Uk Ltd,92692398,"42,201.60 ",Pharmaceutical purchase,W12 7FQ
CHS Estates,L2 Estates,16/12/2022,Electricity,Estates Operations,Opus Energy Ltd,42210442,"97,763.04 ",Mains electricity HRI,"YO8 8PH	"
CHS Estates,L2 Estates,30/12/2022,Electricity,Estates Operations,Opus Energy Ltd,42262327,"98,455.18 ",Mains electricity HRI,"YO8 8PH	"
Balance Sheet,Fixed Assets,30/12/2022,Additions - Assets Under Construction,Capital (Estates),Protec Fire Detection Plc,OP/I887563,"25,600.95 ",EMERGENCY LIGHTING - SUPPLY AND INSTALLATION OF EMERGECY LIGHTING AS PER  QUOTE  (DAY SURGERY  THEATRE & PENTHOUSE) PART OF PANEL 4,BB9 6RT
Medical Division,Emergency Medicine,30/12/2022,B5 Agency Nursing,A&E Nursing,Red Group Personnel Ltd,041222CH,4453.67,B5 Agency Nursing,HA3 5AB
Surgery & Anaesthetics,General Surgery,30/12/2022,B5 Agency Nursing,Endoscopy,Red Group Personnel Ltd,041222CH,454.77,B5 Agency Nursing,HA3 5AB
Medical Division,Medical Specialities,30/12/2022,B5 Agency Nursing,Gastroenterology,Red Group Personnel Ltd,041222CH,418.58,B5 Agency Nursing,HA3 5AB
Medical Division,Acute Medical,30/12/2022,B5 Agency Nursing,General Medicine,Red Group Personnel Ltd,041222CH,8481.15,B5 Agency Nursing,HA3 5AB
Medical Division,Acute Medical,30/12/2022,B5 Agency Nursing,Geriatric Medicine,Red Group Personnel Ltd,041222CH,6322.65,B5 Agency Nursing,HA3 5AB
Medical Division,Integrated Medical Specialities,30/12/2022,B5 Agency Nursing,Ims Stroke / Rehabilitation,Red Group Personnel Ltd,041222CH,1333.08,B5 Agency Nursing,HA3 5AB
Families & Specialist Services,Childrens,30/12/2022,B5 Agency Nursing,Inpatients Paediatrics,Red Group Personnel Ltd,041222CH,598.03,B5 Agency Nursing,HA3 5AB
Surgery & Anaesthetics,Operating Services,30/12/2022,B5 Agency Nursing,Operating Services,Red Group Personnel Ltd,041222CH,8485.39,B5 Agency Nursing,HA3 5AB
Medical Division,Medical Specialities,30/12/2022,B5 Agency Nursing,Respiratory,Red Group Personnel Ltd,041222CH,3312.31,B5 Agency Nursing,HA3 5AB
Surgery & Anaesthetics,Orthopaedics,30/12/2022,B5 Agency Nursing,Trauma & Orthopaedics,Red Group Personnel Ltd,041222CH,689.98,B5 Agency Nursing,HA3 5AB
Medical Division,Emergency Medicine,30/12/2022,B5 Agency Nursing,A&E Nursing,Red Group Personnel Ltd,061122CH,6043.93,B5 Agency Nursing,HA3 5AB
Medical Division,Medical Specialities,30/12/2022,B5 Agency Nursing,Cardiology,Red Group Personnel Ltd,061122CH,758.64,B5 Agency Nursing,HA3 5AB
Corporate Services,Central Operations Team CORP,30/12/2022,B5 Agency Nursing,Central Operations Team CORP,Red Group Personnel Ltd,061122CH,2621.93,B5 Agency Nursing,HA3 5AB
Medical Division,Medical Specialities,30/12/2022,B5 Agency Nursing,Gastroenterology,Red Group Personnel Ltd,061122CH,993.02,B5 Agency Nursing,HA3 5AB
Medical Division,Acute Medical,30/12/2022,B5 Agency Nursing,General Medicine,Red Group Personnel Ltd,061122CH,8745.1,B5 Agency Nursing,HA3 5AB
Surgery & Anaesthetics,General Surgery,30/12/2022,B5 Agency Nursing,General Surgery,Red Group Personnel Ltd,061122CH,1722.98,B5 Agency Nursing,HA3 5AB
Medical Division,Acute Medical,30/12/2022,B5 Agency Nursing,Geriatric Medicine,Red Group Personnel Ltd,061122CH,1795.13,B5 Agency Nursing,HA3 5AB
Families & Specialist Services,Womens,30/12/2022,B5 Agency Nursing,Gynaecology,Red Group Personnel Ltd,061122CH,1609.55,B5 Agency Nursing,HA3 5AB
Medical Division,Integrated Medical Specialities,30/12/2022,B5 Agency Nursing,Ims Stroke / Rehabilitation,Red Group Personnel Ltd,061122CH,2086.09,B5 Agency Nursing,HA3 5AB
Surgery & Anaesthetics,Operating Services,30/12/2022,B5 Agency Nursing,Operating Services,Red Group Personnel Ltd,061122CH,3920.84,B5 Agency Nursing,HA3 5AB
Medical Division,Medical Specialities,30/12/2022,B5 Agency Nursing,Respiratory,Red Group Personnel Ltd,061122CH,3175.27,B5 Agency Nursing,HA3 5AB
Medical Division,Emergency Medicine,02/12/2022,B5 Agency Nursing,A&E Nursing,Red Group Personnel Ltd,091022CH,5708.41,B5 Agency Nursing,HA3 5AB
Medical Division,Medical Specialities,02/12/2022,B5 Agency Nursing,Gastroenterology,Red Group Personnel Ltd,091022CH,1230.05,B5 Agency Nursing,HA3 5AB
Medical Division,Acute Medical,02/12/2022,B5 Agency Nursing,General Medicine,Red Group Personnel Ltd,091022CH,10101.18,B5 Agency Nursing,HA3 5AB
Medical Division,Acute Medical,02/12/2022,B5 Agency Nursing,Geriatric Medicine,Red Group Personnel Ltd,091022CH,2872.2,B5 Agency Nursing,HA3 5AB
Medical Division,Integrated Medical Specialities,02/12/2022,B5 Agency Nursing,Ims Stroke / Rehabilitation,Red Group Personnel Ltd,091022CH,1072.18,B5 Agency Nursing,HA3 5AB
Surgery & Anaesthetics,Operating Services,02/12/2022,B5 Agency Nursing,Operating Services,Red Group Personnel Ltd,091022CH,3602.35,B5 Agency Nursing,HA3 5AB
Medical Division,Medical Specialities,02/12/2022,B5 Agency Nursing,Respiratory,Red Group Personnel Ltd,091022CH,4821.68,B5 Agency Nursing,HA3 5AB
Surgery & Anaesthetics,Orthopaedics,02/12/2022,B5 Agency Nursing,Trauma & Orthopaedics,Red Group Personnel Ltd,091022CH,550.51,B5 Agency Nursing,HA3 5AB
Medical Division,Emergency Medicine,09/12/2022,B5 Agency Nursing,A&E Nursing,Red Group Personnel Ltd,131122CH,5566.65,B5 Agency Nursing,HA3 5AB
Corporate Services,Central Operations Team CORP,09/12/2022,B5 Agency Nursing,Central Operations Team CORP,Red Group Personnel Ltd,131122CH,1455.15,B5 Agency Nursing,HA3 5AB
Medical Division,Acute Medical,09/12/2022,B5 Agency Nursing,General Medicine,Red Group Personnel Ltd,131122CH,6917.73,B5 Agency Nursing,HA3 5AB
Surgery & Anaesthetics,General Surgery,09/12/2022,B5 Agency Nursing,General Surgery,Red Group Personnel Ltd,131122CH,1311.95,B5 Agency Nursing,HA3 5AB
Medical Division,Acute Medical,09/12/2022,B5 Agency Nursing,Geriatric Medicine,Red Group Personnel Ltd,131122CH,5094.12,B5 Agency Nursing,HA3 5AB
Medical Division,Integrated Medical Specialities,09/12/2022,B5 Agency Nursing,Ims Stroke / Rehabilitation,Red Group Personnel Ltd,131122CH,2570.16,B5 Agency Nursing,HA3 5AB
Medical Division,Integrated Medical Specialities,09/12/2022,B5 Agency Nursing,Medical Oncology,Red Group Personnel Ltd,131122CH,1148.88,B5 Agency Nursing,HA3 5AB
Surgery & Anaesthetics,Operating Services,09/12/2022,B5 Agency Nursing,Operating Services,Red Group Personnel Ltd,131122CH,9392.46,B5 Agency Nursing,HA3 5AB
Medical Division,Medical Specialities,09/12/2022,B5 Agency Nursing,Respiratory,Red Group Personnel Ltd,131122CH,7199.17,B5 Agency Nursing,HA3 5AB
Surgery & Anaesthetics,Orthopaedics,09/12/2022,B5 Agency Nursing,Trauma & Orthopaedics,Red Group Personnel Ltd,131122CH,666.96,B5 Agency Nursing,HA3 5AB
Medical Division,Emergency Medicine,14/12/2022,B5 Agency Nursing,A&E Nursing,Red Group Personnel Ltd,201122CH,1623.38,B5 Agency Nursing,HA3 5AB
Corporate Services,Central Operations Team CORP,14/12/2022,B5 Agency Nursing,Central Operations Team CORP,Red Group Personnel Ltd,201122CH,4324.28,B5 Agency Nursing,HA3 5AB
Medical Division,Medical Specialities,14/12/2022,B5 Agency Nursing,Gastroenterology,Red Group Personnel Ltd,201122CH,1184.38,B5 Agency Nursing,HA3 5AB
Medical Division,Acute Medical,14/12/2022,B5 Agency Nursing,General Medicine,Red Group Personnel Ltd,201122CH,5685.24,B5 Agency Nursing,HA3 5AB
Surgery & Anaesthetics,General Surgery,14/12/2022,B5 Agency Nursing,General Surgery,Red Group Personnel Ltd,201122CH,1356.94,B5 Agency Nursing,HA3 5AB
Medical Division,Acute Medical,14/12/2022,B5 Agency Nursing,Geriatric Medicine,Red Group Personnel Ltd,201122CH,4132.96,B5 Agency Nursing,HA3 5AB
Medical Division,Integrated Medical Specialities,14/12/2022,B5 Agency Nursing,Ims Stroke / Rehabilitation,Red Group Personnel Ltd,201122CH,2297.76,B5 Agency Nursing,HA3 5AB
Medical Division,Integrated Medical Specialities,14/12/2022,B5 Agency Nursing,Medical Oncology,Red Group Personnel Ltd,201122CH,574.44,B5 Agency Nursing,HA3 5AB
Surgery & Anaesthetics,Operating Services,14/12/2022,B5 Agency Nursing,Operating Services,Red Group Personnel Ltd,201122CH,9568,B5 Agency Nursing,HA3 5AB
Medical Division,Medical Specialities,14/12/2022,B5 Agency Nursing,Respiratory,Red Group Personnel Ltd,201122CH,2327.46,B5 Agency Nursing,HA3 5AB
Surgery & Anaesthetics,Orthopaedics,14/12/2022,B5 Agency Nursing,Trauma & Orthopaedics,Red Group Personnel Ltd,201122CH,474.15,B5 Agency Nursing,HA3 5AB
Balance Sheet,L2 Current Assets,30/12/2022,Finished Processed Goods,Stock & Work In Progress,Roche Products Ltd,1322259711,"33,275.64 ",Pharmaceutical purchase,AL7 1TW
Balance Sheet,L2 Current Assets,30/12/2022,Finished Processed Goods,Stock & Work In Progress,Roche Products Ltd,1322260476,"25,698.66 ",Pharmaceutical purchase,AL7 1TW
Balance Sheet,L2 Current Assets,30/12/2022,Finished Processed Goods,Stock & Work In Progress,Roche Products Ltd,1322262103,"32,094.96 ",Pharmaceutical purchase,AL7 1TW
CHS Estates,L2 Estates,30/12/2022,Gas,Estates Operations,SEFE Energy Limited,INV02688062,"144,803.30 ",Mains gas HRI,NW1 3BF
Families & Specialist Services,Radiology,01/12/2022,Med Surg Eqpt Leasing,Mri,Sg Radiology & Associates Ltd,SCN-144,"-28,800.00 ",lease of two SG mobile MRI units for CRH,WF1 3QQ
Families & Specialist Services,Radiology,01/12/2022,Med Surg Eqpt Leasing,Mri,Sg Radiology & Associates Ltd,SI-2788,"31,680.00 ",lease of two SG mobile MRI units for CRH,WF1 3QQ
Families & Specialist Services,Pathology,14/12/2022,Laboratory Chemicals,Path Chemical Pathology,Siemens Healthcare Diagnostics Ltd,114860947,"156,629.44 ",Biochemistry Managed Service Contract,GU16 8QD
Corporate Services,Quality,30/12/2022,Computer Software / License  Fees,Quality,Softcat Plc,INVUK665672,"36,129.76",YR 3 -WYAAT Agreement with Allocate.Nursing Workstream has two elements 1) AHP eJP - £25 099.57 2) AHP Rostering - £20 062.63,SL7 1TB
Corporate Services,Quality,30/12/2022,Fm Computer Contracts,Quality,Softcat Plc,INVUK665672,"4,813.44",WYAAT agreement with Allocate (Year 3) - Medical Workstream is for Activity Manager,SL7 1TB
Corporate Services,Quality,30/12/2022,Computer Software / License  Fees,Quality,Softcat Plc,INVUK665672,"9,032.44",YR 3 -WYAAT Agreement with Allocate.Nursing Workstream has two elements 1) AHP eJP - £25 099.57 2) AHP Rostering - £20 062.63,SL7 1TB
Corporate Services,Quality,30/12/2022,Fm Computer Contracts,Quality,Softcat Plc,INVUK665672,"1,203.36",WYAAT agreement with Allocate (Year 3) - Medical Workstream is for Activity Manager,SL7 1TB
Corporate Services,Quality,14/12/2022,Computer Software / License  Fees,Quality,Softcat Plc,INVUK649768,"378,039.60 ",NURSING SOFTWARE FEES MEDICAL SOFTWARE FEES Year 2 1/11/22- 31/10/23,SL7 1TB
CHS Facilities,L2 Facilities,21/12/2022,External Contracts : Laundry,Laundry,Synergy Health Managed Services Ltd,50001057,"134,377.63 ",LAUNDRY SERVICE CONTRACT,WA9 5XH
Community Division,Community Therapies,02/12/2022,Patients Appliances : Purchase,Patient Appliances,Taycare Medical Ltd,21609,"43,644.63 ",supply of specialist orthotic products,LS12 6LL
Community Division,Community Therapies,02/12/2022,Patients Appliances : Purchase,Patient Appliances,Taycare Medical Ltd,21610,"58,564.96 ",supply of specialist orthotic products,LS12 6LL
Community Division,Community Therapies,30/12/2022,Patients Appliances : Purchase,Patient Appliances,Taycare Medical Ltd,21674,"37,577.25 ",supply of specialist orthotic products,LS12 6LL
Families & Specialist Services,Radiology,30/12/2022,Contractual Clinical Services,Rad General,Telemedicine Clinic Ltd,20220548,"124,576.15 ",Outsourcied teleradiology reporting ,B3 2RT
Recharges,Recharges,14/12/2022,Healthcare From NHS Trusts,Recharges,The Leeds Teaching Hospitals NHS Trust,1410199008,"106,201.36 ",Various services provided by agreement as per West Yorkshire Association of Acute Trusts agreed methodology,LS9 7TF
Recharges,Recharges,14/12/2022,Healthcare From NHS Trusts,Recharges,The Leeds Teaching Hospitals NHS Trust,1410199019,"142,222.22 ",Various services provided by agreement as per West Yorkshire Association of Acute Trusts agreed methodology,LS9 7TF
Balance Sheet,Fixed Assets,02/12/2022,Additions - Assets Under Construction,Capital (Estates),The Together Group Construction Ltd,2903,"214,176.54 ",CHILD DEVELOPMENT UNIT - REFURBISHMENT OF THE CLOCK HOUSE TO CREATE A CHILD DEVELOPMENT UNIT - AS PER CONTRACT ,LS22 5DZ
Central & Technical,Tech Accounting,21/12/2022,ICB Income Patient Care,Tech Accounting,Third Sector Leaders Kirklees,1162,"85,000.00 ",Kirklees Winter Health Messages,HD1 5JP
Balance Sheet,L2 Current Assets,30/12/2022,Other Debtors < One Year,Other Debtors,Tuskerdirect Ltd,67808,"126,441.15 ",Salary Sacrifice cars,WD18 8YF
Balance Sheet,Fixed Assets,09/12/2022,Additions - Assets Under Construction,Capital (Community),Venn Healthcare Ltd,VP914,"42,264.00 ",Storz MP100 Ultra Shockwave Therapy Device  RSW Radial Hand piece  R15 Applicator  D20s Applicator  D115 Aplicator  Touch Screen Table MP100 Trolley - 1 Shelf - 252821S - Storz Medical trolley for MP100 Ultra system as quote,NG16 5FD
Recharges,Recharges,16/12/2022,Mobile Phones,Recharges,Vodafone Ltd,102788129,"28,466.44 ",Corporate Mobile Phones (usage),RG14 5FF
Central & Technical,Tech Accounting,21/12/2022,ICB Income Patient Care,Tech Accounting,Voluntary & Community,INV-00595,"85,000.00 ",Calderdale Winter Money 2022/23,HX1 5AY
Medical Division,Emergency Medicine,14/12/2022,B5 Agency Nursing,A&E Nursing,Your Nurse Ltd,YNLX36,19904.78,B5 Agency Nursing,EC3V 0EH
Medical Division,Medical Specialities,14/12/2022,B5 Agency Nursing,Cardiology,Your Nurse Ltd,YNLX36,577.15,B5 Agency Nursing,EC3V 0EH
Corporate Services,Central Operations Team CORP,14/12/2022,B5 Agency Nursing,Central Operations Team CORP,Your Nurse Ltd,YNLX36,7740.71,B5 Agency Nursing,EC3V 0EH
Surgery & Anaesthetics,Critical Care,14/12/2022,B5 Agency Nursing,Critical Care,Your Nurse Ltd,YNLX36,570.19,B5 Agency Nursing,EC3V 0EH
Medical Division,Medical Specialities,14/12/2022,B5 Agency Nursing,Gastroenterology,Your Nurse Ltd,YNLX36,3098.16,B5 Agency Nursing,EC3V 0EH
Medical Division,Acute Medical,14/12/2022,B5 Agency Nursing,General Medicine,Your Nurse Ltd,YNLX36,4901.94,B5 Agency Nursing,EC3V 0EH
Surgery & Anaesthetics,General Surgery,14/12/2022,B5 Agency Nursing,General Surgery,Your Nurse Ltd,YNLX36,7959.14,B5 Agency Nursing,EC3V 0EH
Medical Division,Acute Medical,14/12/2022,B5 Agency Nursing,Geriatric Medicine,Your Nurse Ltd,YNLX36,11604.42,B5 Agency Nursing,EC3V 0EH
Families & Specialist Services,Womens,14/12/2022,B5 Agency Nursing,Gynaecology,Your Nurse Ltd,YNLX36,2198.56,B5 Agency Nursing,EC3V 0EH
Medical Division,Integrated Medical Specialities,14/12/2022,B5 Agency Nursing,Ims Stroke / Rehabilitation,Your Nurse Ltd,YNLX36,1936.09,B5 Agency Nursing,EC3V 0EH
Medical Division,Integrated Medical Specialities,14/12/2022,B5 Agency Nursing,Medical Oncology,Your Nurse Ltd,YNLX36,1219.69,B5 Agency Nursing,EC3V 0EH
Surgery & Anaesthetics,Operating Services,14/12/2022,B5 Agency Nursing,Operating Services,Your Nurse Ltd,YNLX36,4185.38,B5 Agency Nursing,EC3V 0EH
Medical Division,Medical Specialities,14/12/2022,B5 Agency Nursing,Respiratory,Your Nurse Ltd,YNLX36,4730.25,B5 Agency Nursing,EC3V 0EH
Surgery & Anaesthetics,Orthopaedics,14/12/2022,B5 Agency Nursing,Trauma & Orthopaedics,Your Nurse Ltd,YNLX36,2366.23,B5 Agency Nursing,EC3V 0EH
Medical Division,Emergency Medicine,02/12/2022,B5 Agency Nursing,A&E Nursing,Your Nurse Ltd,YNLX50,25135.79,B5 Agency Nursing,EC3V 0EH
Medical Division,Medical Specialities,02/12/2022,B5 Agency Nursing,Cardiology,Your Nurse Ltd,YNLX50,3158.8,B5 Agency Nursing,EC3V 0EH
Corporate Services,Central Operations Team CORP,02/12/2022,B5 Agency Nursing,Central Operations Team CORP,Your Nurse Ltd,YNLX50,3067.51,B5 Agency Nursing,EC3V 0EH
Surgery & Anaesthetics,Head & Neck,02/12/2022,B5 Agency Nursing,Ent,Your Nurse Ltd,YNLX50,1293,B5 Agency Nursing,EC3V 0EH
Medical Division,Medical Specialities,02/12/2022,B5 Agency Nursing,Gastroenterology,Your Nurse Ltd,YNLX50,8498.33,B5 Agency Nursing,EC3V 0EH
Medical Division,Acute Medical,02/12/2022,B5 Agency Nursing,General Medicine,Your Nurse Ltd,YNLX50,12632.09,B5 Agency Nursing,EC3V 0EH
Surgery & Anaesthetics,General Surgery,02/12/2022,B5 Agency Nursing,General Surgery,Your Nurse Ltd,YNLX50,11324.23,B5 Agency Nursing,EC3V 0EH
Medical Division,Acute Medical,02/12/2022,B5 Agency Nursing,Geriatric Medicine,Your Nurse Ltd,YNLX50,11246.34,B5 Agency Nursing,EC3V 0EH
Medical Division,Integrated Medical Specialities,02/12/2022,B5 Agency Nursing,Ims Stroke / Rehabilitation,Your Nurse Ltd,YNLX50,8979.26,B5 Agency Nursing,EC3V 0EH
Families & Specialist Services,Childrens,02/12/2022,B5 Agency Nursing,Inpatients Paediatrics,Your Nurse Ltd,YNLX50,2790.26,B5 Agency Nursing,EC3V 0EH
Medical Division,Integrated Medical Specialities,02/12/2022,B5 Agency Nursing,Medical Oncology,Your Nurse Ltd,YNLX50,5928.42,B5 Agency Nursing,EC3V 0EH
Families & Specialist Services,Womens,02/12/2022,B5 Agency Nursing,Obstetrics,Your Nurse Ltd,YNLX50,7921.77,B5 Agency Nursing,EC3V 0EH
Surgery & Anaesthetics,Operating Services,02/12/2022,B5 Agency Nursing,Operating Services,Your Nurse Ltd,YNLX50,8605.27,B5 Agency Nursing,EC3V 0EH
Medical Division,Medical Specialities,02/12/2022,B5 Agency Nursing,Respiratory,Your Nurse Ltd,YNLX50,8660.41,B5 Agency Nursing,EC3V 0EH
Surgery & Anaesthetics,Orthopaedics,02/12/2022,B5 Agency Nursing,Trauma & Orthopaedics,Your Nurse Ltd,YNLX50,4727.7,B5 Agency Nursing,EC3V 0EH
Medical Division,Emergency Medicine,09/12/2022,B5 Agency Nursing,A&E Nursing,Your Nurse Ltd,YNLX51,20939.23,B5 Agency Nursing,EC3V 0EH
Medical Division,Medical Specialities,09/12/2022,B5 Agency Nursing,Cardiology,Your Nurse Ltd,YNLX51,2319.59,B5 Agency Nursing,EC3V 0EH
Corporate Services,Central Operations Team CORP,09/12/2022,B5 Agency Nursing,Central Operations Team CORP,Your Nurse Ltd,YNLX51,8962.37,B5 Agency Nursing,EC3V 0EH
Surgery & Anaesthetics,Critical Care,09/12/2022,B5 Agency Nursing,Critical Care,Your Nurse Ltd,YNLX51,1412.38,B5 Agency Nursing,EC3V 0EH
Medical Division,Medical Specialities,09/12/2022,B5 Agency Nursing,Gastroenterology,Your Nurse Ltd,YNLX51,8452.25,B5 Agency Nursing,EC3V 0EH
Medical Division,Acute Medical,09/12/2022,B5 Agency Nursing,General Medicine,Your Nurse Ltd,YNLX51,15401.44,B5 Agency Nursing,EC3V 0EH
Surgery & Anaesthetics,General Surgery,09/12/2022,B5 Agency Nursing,General Surgery,Your Nurse Ltd,YNLX51,15177.62,B5 Agency Nursing,EC3V 0EH
Medical Division,Acute Medical,09/12/2022,B5 Agency Nursing,Geriatric Medicine,Your Nurse Ltd,YNLX51,15854.76,B5 Agency Nursing,EC3V 0EH
Families & Specialist Services,Womens,09/12/2022,B5 Agency Nursing,Gynaecology,Your Nurse Ltd,YNLX51,182.01,B5 Agency Nursing,EC3V 0EH
Medical Division,Integrated Medical Specialities,09/12/2022,B5 Agency Nursing,Ims Stroke / Rehabilitation,Your Nurse Ltd,YNLX51,6462.14,B5 Agency Nursing,EC3V 0EH
Families & Specialist Services,Childrens,09/12/2022,B5 Agency Nursing,Inpatients Paediatrics,Your Nurse Ltd,YNLX51,338.58,B5 Agency Nursing,EC3V 0EH
Medical Division,Integrated Medical Specialities,09/12/2022,B5 Agency Nursing,Medical Oncology,Your Nurse Ltd,YNLX51,2969.51,B5 Agency Nursing,EC3V 0EH
Surgery & Anaesthetics,Operating Services,09/12/2022,B5 Agency Nursing,Operating Services,Your Nurse Ltd,YNLX51,5925.2,B5 Agency Nursing,EC3V 0EH
Corporate Services,Quality,09/12/2022,B5 Agency Nursing,Quality,Your Nurse Ltd,YNLX51,272.63,B5 Agency Nursing,EC3V 0EH
Medical Division,Medical Specialities,09/12/2022,B5 Agency Nursing,Respiratory,Your Nurse Ltd,YNLX51,6943.75,B5 Agency Nursing,EC3V 0EH
Surgery & Anaesthetics,Orthopaedics,09/12/2022,B5 Agency Nursing,Trauma & Orthopaedics,Your Nurse Ltd,YNLX51,3060.19,B5 Agency Nursing,EC3V 0EH
Medical Division,Emergency Medicine,23/12/2022,B5 Agency Nursing,A&E Nursing,Your Nurse Ltd,YNLX52,21809.28,B5 Agency Nursing,EC3V 0EH
Medical Division,Medical Specialities,23/12/2022,B5 Agency Nursing,Cardiology,Your Nurse Ltd,YNLX52,2895.13,B5 Agency Nursing,EC3V 0EH
Corporate Services,Central Operations Team CORP,23/12/2022,B5 Agency Nursing,Central Operations Team CORP,Your Nurse Ltd,YNLX52,9684.84,B5 Agency Nursing,EC3V 0EH
Surgery & Anaesthetics,Critical Care,23/12/2022,B5 Agency Nursing,Critical Care,Your Nurse Ltd,YNLX52,706.19,B5 Agency Nursing,EC3V 0EH
Surgery & Anaesthetics,Head & Neck,23/12/2022,B5 Agency Nursing,Ent,Your Nurse Ltd,YNLX52,637.9,B5 Agency Nursing,EC3V 0EH
Medical Division,Medical Specialities,23/12/2022,B5 Agency Nursing,Gastroenterology,Your Nurse Ltd,YNLX52,5292.32,B5 Agency Nursing,EC3V 0EH
Medical Division,Acute Medical,23/12/2022,B5 Agency Nursing,General Medicine,Your Nurse Ltd,YNLX52,25287.43,B5 Agency Nursing,EC3V 0EH
Surgery & Anaesthetics,General Surgery,23/12/2022,B5 Agency Nursing,General Surgery,Your Nurse Ltd,YNLX52,13337.34,B5 Agency Nursing,EC3V 0EH
Medical Division,Acute Medical,23/12/2022,B5 Agency Nursing,Geriatric Medicine,Your Nurse Ltd,YNLX52,16880.25,B5 Agency Nursing,EC3V 0EH
Families & Specialist Services,Womens,23/12/2022,B5 Agency Nursing,Gynaecology,Your Nurse Ltd,YNLX52,749.32,B5 Agency Nursing,EC3V 0EH
Medical Division,Integrated Medical Specialities,23/12/2022,B5 Agency Nursing,Ims Stroke / Rehabilitation,Your Nurse Ltd,YNLX52,7820.99,B5 Agency Nursing,EC3V 0EH
Families & Specialist Services,Childrens,23/12/2022,B5 Agency Nursing,Inpatients Paediatrics,Your Nurse Ltd,YNLX52,1439.69,B5 Agency Nursing,EC3V 0EH
Medical Division,Integrated Medical Specialities,23/12/2022,B5 Agency Nursing,Medical Oncology,Your Nurse Ltd,YNLX52,4198.57,B5 Agency Nursing,EC3V 0EH
Surgery & Anaesthetics,Operating Services,23/12/2022,B5 Agency Nursing,Operating Services,Your Nurse Ltd,YNLX52,14676.51,B5 Agency Nursing,EC3V 0EH
Medical Division,Medical Specialities,23/12/2022,B5 Agency Nursing,Respiratory,Your Nurse Ltd,YNLX52,5441.66,B5 Agency Nursing,EC3V 0EH
Surgery & Anaesthetics,Orthopaedics,23/12/2022,B5 Agency Nursing,Trauma & Orthopaedics,Your Nurse Ltd,YNLX52,3420.51,B5 Agency Nursing,EC3V 0EH
Medical Division,Emergency Medicine,30/12/2022,B5 Agency Nursing,A&E Nursing,Your Nurse Ltd,YNLX53,16317.65,B5 Agency Nursing,EC3V 0EH
Medical Division,Medical Specialities,30/12/2022,B5 Agency Nursing,Cardiology,Your Nurse Ltd,YNLX53,1422.16,B5 Agency Nursing,EC3V 0EH
Corporate Services,Central Operations Team CORP,30/12/2022,B5 Agency Nursing,Central Operations Team CORP,Your Nurse Ltd,YNLX53,5374.99,B5 Agency Nursing,EC3V 0EH
Surgery & Anaesthetics,Critical Care,30/12/2022,B5 Agency Nursing,Critical Care,Your Nurse Ltd,YNLX53,715.73,B5 Agency Nursing,EC3V 0EH
Medical Division,Medical Specialities,30/12/2022,B5 Agency Nursing,Gastroenterology,Your Nurse Ltd,YNLX53,5316.52,B5 Agency Nursing,EC3V 0EH
Medical Division,Acute Medical,30/12/2022,B5 Agency Nursing,General Medicine,Your Nurse Ltd,YNLX53,18363.22,B5 Agency Nursing,EC3V 0EH
Surgery & Anaesthetics,General Surgery,30/12/2022,B5 Agency Nursing,General Surgery,Your Nurse Ltd,YNLX53,13023.39,B5 Agency Nursing,EC3V 0EH
Medical Division,Acute Medical,30/12/2022,B5 Agency Nursing,Geriatric Medicine,Your Nurse Ltd,YNLX53,15469.8,B5 Agency Nursing,EC3V 0EH
Families & Specialist Services,Womens,30/12/2022,B5 Agency Nursing,Gynaecology,Your Nurse Ltd,YNLX53,1412.38,B5 Agency Nursing,EC3V 0EH
Medical Division,Integrated Medical Specialities,30/12/2022,B5 Agency Nursing,Ims Stroke / Rehabilitation,Your Nurse Ltd,YNLX53,5427.03,B5 Agency Nursing,EC3V 0EH
Families & Specialist Services,Childrens,30/12/2022,B5 Agency Nursing,Inpatients Paediatrics,Your Nurse Ltd,YNLX53,706.19,B5 Agency Nursing,EC3V 0EH
Medical Division,Integrated Medical Specialities,30/12/2022,B5 Agency Nursing,Medical Oncology,Your Nurse Ltd,YNLX53,3622.95,B5 Agency Nursing,EC3V 0EH
Surgery & Anaesthetics,Operating Services,30/12/2022,B5 Agency Nursing,Operating Services,Your Nurse Ltd,YNLX53,6545.91,B5 Agency Nursing,EC3V 0EH
Medical Division,Medical Specialities,30/12/2022,B5 Agency Nursing,Respiratory,Your Nurse Ltd,YNLX53,7084.59,B5 Agency Nursing,EC3V 0EH
Surgery & Anaesthetics,Orthopaedics,30/12/2022,B5 Agency Nursing,Trauma & Orthopaedics,Your Nurse Ltd,YNLX53,4163.34,B5 Agency Nursing,EC3V 0EH
